[Event "FRA-ch Teams Top 16-Haute 2022"]
[Site "Chartres"]
[Date "2022.06.16"]
[Round "8.1"]
[White "Ragger, Markus"]
[Black "Nihal Sarin"]
[Result "1/2-1/2"]
[ECO "C07"]
[WhiteElo "2636"]
[BlackElo "2646"]
[Annotator "TA"]
[PlyCount "46"]
[EventDate "2022.06.16"]
[EventType "team-tourn"]
[EventCountry "FRA"]
[SourceTitle "playchess.com"]
[Source "ChessBase"]
[SourceQuality "1"]
[TimeControl "40/5400+30:1800+30"]

{[%evp 14,33,21,5,22,18,14,8,5,6,16,19,15,19,14,14,10,12,8,14,13,7]} 1. e4 {[%emt 0:00:55]} e6 {[%emt 0:00:38]} 2. d4 {[%emt 0:00:18]} d5 {[%emt 0:00:10]} 3. Nd2 {[%emt 0:00:24]} c5 {[%emt 0:00:06]} 4. Ngf3 {[%emt 0:00:07]} cxd4 {[%emt 0:00:06]} 5. Nxd4 {[%emt 0:00:20]} Nc6 {[%emt 0:00:04]} 6. Bb5 {[%emt 0:00:10][%cal Bf1b5,Bb5d3,Bd3e4][%mdl 32]} Bd7 {[%emt 0:00:06]} 7. Nxc6 {[%emt 0:00:20]} bxc6 {[%emt 0:00:05]} 8. Bd3 $1 {[%emt 0:00:18] The position is equal.} Bd6 {[%emt 0:00:05] C07: French Tarrasch: 3...c5, 4 Ngf3 and 4 exd5 Qxd5.} 9. Qe2 {[%emt 0:01:28]} e5 $1 {[%emt 0:00:07][%mdl 4] is currently scoring better than 9...Ne7.} 10. exd5 {[%emt 0:01:10]} cxd5 {[%emt 0:00:25]} 11. c4 {[%emt 0:00:05]} Ne7 {[%emt 0:00:05][%cal Bg8e7,Be7d5,Bd5f4][%mdl 32]} 12. cxd5 {[%emt 0:00:11]} Nxd5 {[%emt 0:00:21]} 13. Be4 {[%emt 0:01:03]} Nf4 {[%emt 0:00:18]} 14. Qa6 {[%emt 0:00:40]} Bc5 {[%emt 0:00:07] [#] aiming for ...Rb8.} 15. O-O $1 {[%emt 0:00:53] Strongly threatening Nf3.} Rb8 {[%emt 0:00:19] White must now prevent ...0-0.} 16. Nb3 {[%emt 0:00:27]} Bb6 {[%emt 0:00:08]} 17. Bxf4 {[%emt 0:00:10] [#] An even fight not without its subleties.  Weighted Error Value: White=0.00 (flawless) /Black=0.02 (flawless)} {Predecessor:} exf4 $146 18. Rad1 O-O 19. Bxh7+ Kxh7 20. Qd3+ Kg8 21. Qxd7 Qf6 22. Qd6 Qxd6 23. Rxd6 a5 {½-½ (38) Khusnutdinov,R (2484)-Aitbayev,A (2427) Chess.com INT 2021} 1/2-1/2

[Event "FRA-ch Teams Top 16-Haute 2022"]
[Site "Chartres"]
[Date "2022.06.16"]
[Round "8.3"]
[White "Naiditsch, Arkadij"]
[Black "Mendonca, Leon Luke"]
[Result "0-1"]
[ECO "B13"]
[WhiteElo "2654"]
[BlackElo "2551"]
[Annotator "TA"]
[PlyCount "116"]
[EventDate "2022.06.16"]
[EventType "team-tourn"]
[EventCountry "FRA"]
[SourceTitle "playchess.com"]
[Source "ChessBase"]
[SourceQuality "1"]
[TimeControl "40/5400+30:1800+30"]

{[%evp 9,116,16,6,0,0,-6,0,-17,-17,-25,-24,-24,-21,-22,-23,-25,-25,-23,-16,-19,-24,-37,-6,0,-18,-16,-12,-16,-17,-17,-9,-10,-6,-28,0,0,0,0,0,0,0,0,0,0,0,0,0,-24,0,-6,0,0,0,-15,0,-8,-8,-8,-8,-14,-8,-11,-10,-8,-28,-95,-95,-91,-91,-107,-106,-95,-113,-110,-100,-243,-234,-261,-249,-331,-331,-331,-301,-327,-302,-397,-368,-387,-338,-372,-281,-382,-365,-471,-461,-635,-643,-666,-643,-666,-666,-716,-683,-29945,-29947,-12598,-11495,-6095,-4132]} 1. e4 {[%emt 0:03:05]} c6 {[%emt 0:00:47]} 2. d4 {[%emt 0:00:13]} d5 {[%emt 0:00:10]} 3. exd5 {[%emt 0:00:06]} cxd5 {[%emt 0:00:07]} 4. Bd3 {[%emt 0:00:06]} Nf6 {[%emt 0:00:59]} 5. h3 {[%emt 0:01:48]} Nc6 {[%emt 0:01:04][%cal Bb8c6,Bc6b4,Bb4d3][%mdl 32]} 6. Nf3 {[%emt 0:00:10] B13: Caro-Kann: Exchange Variation and Panov-Botvinnik Attack.} Nb4 {[%emt 0:01:49]} 7. Nc3 {[%emt 0:00:20] outshines the older 7.Bb5+.} Nxd3+ {[%emt 0:04:41]} 8. cxd3 {[%emt 0:00:08] The position is equal.} e6 {[%emt 0:04:35]} 9. Bf4 {[%emt 0:02:57]} Bd6 {[%emt 0:02:59]} 10. Bxd6 {[%emt 0:06:19]} Qxd6 {[%emt 0:00:21] [#]} 11. O-O $146 {[%emt 0:00:09]} ({Predecessor:} 11. Rc1 O-O 12. O-O Bd7 13. Qb3 Rfc8 14. Ne5 Be8 15. Rfe1 Rab8 16. a3 g6 17. Qc2 {0-1 (29) Rodriguez Redondo,A (1314)-Ramos Aguilar,J (2176) Tenerife 2012}) 11... O-O {[%emt 0:00:45]} 12. Qb3 {[%emt 0:00:35]} Bd7 {[%emt 0:05:54]} 13. Ne5 {[%emt 0:00:28]} Rfc8 {[%emt 0:13:36]} 14. Rfc1 {[%emt 0:05:47]} Be8 {[%emt 0:13:41]} 15. a4 {[%emt 0:09:51]} ({Not} 15. Qxb7 $2 Rcb8 16. Nb5 Qb4 $19) 15... Qb6 {[%emt 0:15:02]} 16. Qxb6 {[%emt 0:07:54]} axb6 {[%emt 0:00:30]} 17. Kf1 {[%emt 0:00:32]} Kf8 {[%emt 0:02:38]} (17... Bxa4 $2 18. Nxa4 Rxc1+ 19. Rxc1 $18) 18. Ke2 {[%emt 0:00:20]} Ng8 {[%emt 0:01:57][%cal Bf6g8,Bg8e7,Be7f5][%mdl 32]} ({But not} 18... Bxa4 19. Nxa4 Rxc1 20. Rxc1 $16) 19. Kd2 {[%emt 0:00:59]} Ne7 {[%emt 0:04:02]} 20. f4 {[%emt 0:00:25]} Nf5 {[%emt 0:07:01]} 21. Nf3 {[%emt 0:01:03][%cal Be5f3,Bf3g1,Bg1e2,Be2g3][%mdl 32]} f6 {[%emt 0:02:04]} 22. g4 {[%emt 0:04:13]} Ne7 {[%emt 0:06:02]} 23. Ng1 {[%emt 0:04:00]} h5 {[%emt 0:03:07]} 24. Re1 {[%emt 0:04:32]} hxg4 {[%emt 0:04:09]} 25. hxg4 {[%emt 0:05:42]} Kf7 {[%emt 0:00:43]} 26. Nge2 {[%emt 0:03:18]} Bd7 {[%emt 0:01:29]} 27. Rh1 {[%emt 0:04:57]} Rh8 {[%emt 0:00:50]} 28. Ng3 {[%emt 0:02:03]} Rag8 {[%emt 0:01:16]} 29. b3 {[%emt 0:04:23]} Rxh1 {[%emt 0:01:42]} 30. Rxh1 {[%emt 0:01:41]} g5 {[%emt 0:00:51]} 31. Rh6 {[%emt 0:03:04]} Rg6 {[%emt 0:00:35]} 32. fxg5 {[%emt 0:00:20]} Rxh6 {[%emt 0:00:30]} 33. gxh6 $11 {[%emt 0:00:06][%mdl 4096] [#] Endgame Threatens to win with h7. KBN-KNN} Kg6 {[%emt 0:00:17]} 34. Nh5 {[%emt 0:04:48][%cal Oh6h7] Hoping for h7!} Ng8 {[%emt 0:00:39]} 35. h7 {[%emt 0:01:48]} Kxh7 {[%emt 0:00:01]} 36. Ke3 {[%emt 0:00:13]} Kg6 {[%emt 0:00:27]} 37. Kf4 {[%emt 0:02:54]} (37. Nf4+ $11 {remains equal.} Kg5 38. Kf3) 37... Ne7 $17 {[%emt 0:00:52]} 38. Kg3 {[%emt 0:00:02]} Nc6 {[%emt 0:00:44]} 39. Ne2 {[%emt 0:04:48]} Nb4 {[%emt 0:00:29]} 40. Nhf4+ {[%emt 0:00:37]} Kf7 {[%emt 0:00:33]} 41. Nc3 {[%emt 0:34:31]} Bc6 {[%emt 0:02:43]} 42. Kh4 {[%emt 0:00:00] [#] Loses the game.} (42. Kf3 $17) 42... e5 $1 $19 {[%emt 0:02:37]} 43. Nfe2 {[%emt 0:00:00]} Nxd3 {[%emt 0:04:01]} 44. g5 {[%emt 0:00:00]} Ne1 {[%emt 0:01:32]} 45. gxf6 {[%emt 0:00:00]} Kxf6 {[%emt 0:01:35]} 46. Kg3 {[%emt 0:00:00]} Nc2 {[%emt 0:01:13]} 47. Nb1 {[%emt 0:00:00]} exd4 {[%emt 0:04:27]} 48. Kf2 {[%emt 0:00:00]} Ke5 {[%emt 0:05:43]} 49. Nc1 {[%emt 0:00:00]} Bd7 {[%emt 0:03:40]} 50. Nd2 {[%emt 0:00:00]} Kd6 {[%emt 0:02:17]} 51. Nf3 {[%emt 0:00:00]} Bf5 {[%emt 0:00:47] Against Nd3. White must now prevent ...Kc5.} 52. Ke2 {[%emt 0:00:00]} Kc5 {[%emt 0:03:00]} 53. Kd2 {[%emt 0:00:00]} Na1 {[%emt 0:01:17]} 54. b4+ {[%emt 0:00:00]} Kc4 {[%emt 0:01:02]} 55. b5 {[%emt 0:00:00]} Be4 {[%emt 0:00:43]} 56. Ng5 {[%emt 0:00:00]} Nb3+ {[%emt 0:01:06]} 57. Nxb3 {[%emt 0:00:00]} Kxb3 {[%emt 0:00:03]} 58. Ne6 {[%emt 0:00:00]} d3 {[%emt 0:00:55] Weighted Error Value: White=0.33/Black=0.05 (flawless)} 0-1

[Event "FRA-ch Teams Top 16-Haute 2022"]
[Site "Chartres"]
[Date "2022.06.16"]
[Round "8.4"]
[White "Burri, Quentin"]
[Black "Rodshtein, Maxim"]
[Result "0-1"]
[ECO "D35"]
[WhiteElo "2401"]
[BlackElo "2588"]
[Annotator "TA"]
[PlyCount "50"]
[EventDate "2022.06.16"]
[EventType "team-tourn"]
[EventCountry "FRA"]
[SourceTitle "playchess.com"]
[Source "ChessBase"]
[SourceQuality "1"]
[TimeControl "40/5400+30:1800+30"]

{[%evp 11,50,33,27,18,25,6,20,10,8,-5,0,-8,0,0,0,0,-8,-17,0,-59,-64,-122,-66,-212,-172,-203,-175,-183,-167,-172,-175,-175,-167,-176,-176,-265,-242,-228,-228,-228,-214]} 1. d4 {[%emt 0:00:03]} Nf6 {[%emt 0:01:33]} 2. c4 {[%emt 0:00:06]} e6 {[%emt 0:00:19]} 3. Nc3 {[%emt 0:00:16]} d5 {[%emt 0:02:00]} 4. cxd5 {[%emt 0:00:56]} exd5 {[%emt 0:00:06]} 5. Bg5 {[%emt 0:00:14]} Bb4 {[%emt 0:00:17]} 6. e3 {[%emt 0:04:50]} h6 {[%emt 0:00:33]} 7. Bxf6 {[%emt 0:03:08] D35: Queen's Gambit Declined: Exchange Variation.} Qxf6 {[%emt 0:00:05]} 8. Qa4+ {[%emt 0:00:53]} Nc6 {[%emt 0:00:11]} 9. Rc1 {[%emt 0:00:42] The position is equal.} O-O {[%emt 0:09:01][%cal Bh8f8,Bf8e8,Be8e6,Be6g6][%mdl 32]} 10. a3 {[%emt 0:07:13]} Bxc3+ {[%emt 0:00:28]} 11. Rxc3 {[%emt 0:00:12]} Re8 {[%emt 0:04:46]} 12. Nf3 {[%emt 0:23:21]} Bg4 {[%emt 0:13:54]} 13. Be2 {[%emt 0:09:55]} Bxf3 {[%emt 0:03:57]} 14. gxf3 {[%emt 0:00:29]} Re6 {[%emt 0:13:25] [#]} 15. Qd1 $146 {[%emt 0:18:10]} (15. h4 $11) ({Predecessor:} 15. f4 Rae8 16. Bg4 Re4 17. Kf1 Nxd4 18. exd4 c6 19. Rg3 Rxf4 20. Qc2 Ree4 21. h3 {1-0 (32) Djuric,S (2489)-Efimov,I (2446) Cutro 2002}) 15... Rae8 $1 $15 {[%emt 0:02:23][%cal Oc6d4] Strongly threatening ...Nxd4!} 16. Bb5 {[%emt 0:01:22]} (16. Rd3 $15) 16... Qh4 {[%emt 0:07:30] Black is more active.} ({Black should play} 16... Nxd4 $1 $17 17. Bxe8 Nxf3+ 18. Ke2 Rxe8 19. Qxd5 Rd8 $1 20. Qxd8+ (20. Qxf3 $2 Rd2+ 21. Kxd2 Qxf3 $19) 20... Qxd8 21. Kxf3 Qd5+ 22. e4 Qh5+ 23. Ke3 Qg5+ 24. Ke2 Qg4+ 25. Ke3 g5) 17. O-O {[%emt 0:05:26] This move loses the game for White.} (17. Kf1 $1 $15) 17... Rg6+ $19 {[%emt 0:09:06]} 18. Kh1 {[%emt 0:00:05]} Rg5 {[%emt 0:03:21] ( -> ...Rh5)} 19. Rg1 {[%emt 0:02:29]} (19. Bxc6 $2 {[#] gets mated.} Rh5 $1 20. h3 Qxh3+ 21. Kg1 Qh2#) 19... Qxf2 {[%emt 0:00:55] And now ...Rxg1+ would win.} ({Don't take} 19... Rh5 20. Rg2 $16) 20. Rxg5 {[%emt 0:00:23]} hxg5 {[%emt 0:00:06]} 21. Qe2 {[%emt 0:01:10]} Qxe2 {[%emt 0:02:05]} 22. Bxe2 {[%emt 0:00:06]} Nxd4 {[%emt 0:00:09]} 23. exd4 {[%emt 0:00:15]} (23. Ba6 {was called for.}) 23... Rxe2 {[%emt 0:00:06]} 24. Rxc7 {[%emt 0:00:06]} Rxb2 {[%emt 0:00:05]} 25. Rc5 {[%emt 0:01:02]} Rb3 {[%emt 0:01:25] Weighted Error Value: White=0.28 (precise) /Black=0.09 (flawless)} 0-1

[Event "FRA-ch Teams Top 16-Haute 2022"]
[Site "Chartres"]
[Date "2022.06.16"]
[Round "8.5"]
[White "Bacrot, Etienne"]
[Black "Gatineau, Yovann"]
[Result "1-0"]
[ECO "C95"]
[WhiteElo "2638"]
[BlackElo "2367"]
[Annotator "TA"]
[PlyCount "103"]
[EventDate "2022.06.16"]
[EventType "team-tourn"]
[EventCountry "FRA"]
[SourceTitle "playchess.com"]
[Source "ChessBase"]
[SourceQuality "1"]
[TimeControl "40/5400+30:1800+30"]

{[%evp 32,103,15,16,18,16,19,30,17,21,22,19,40,20,20,11,12,22,46,18,156,153,172,173,217,164,245,237,238,223,215,143,148,122,122,123,135,131,147,142,163,141,164,150,221,142,132,133,132,137,134,125,274,274,274,274,274,274,266,229,717,718,656,620,1117,1106,1106,1106,1085,845,956,536,700,657]} 1. e4 {[%emt 0:12:25]} e5 {[%emt 0:00:18]} 2. Nf3 {[%emt 0:00:06]} Nc6 {[%emt 0:00:18]} 3. Bb5 {[%emt 0:00:05]} a6 {[%emt 0:00:20]} 4. Ba4 {[%emt 0:00:06]} Nf6 {[%emt 0:00:05]} 5. O-O {[%emt 0:00:06]} Be7 {[%emt 0:00:35]} 6. Re1 {[%emt 0:00:08]} b5 {[%emt 0:00:42]} 7. Bb3 {[%emt 0:00:06]} d6 {[%emt 0:00:03]} 8. c3 {[%emt 0:00:08]} O-O {[%emt 0:00:49]} 9. h3 {[%emt 1:21:50]} Nb8 {[%emt 0:01:49]} 10. d4 {[%emt 0:00:00]} Nbd7 {[%emt 0:01:00]} 11. Nbd2 {[%emt 0:00:00]} Bb7 {[%emt 0:01:24]} 12. Bc2 {[%emt 0:00:00]} Re8 {[%emt 0:00:08]} 13. Nf1 {[%emt 0:00:00]} Bf8 {[%emt 0:00:50]} 14. Ng3 {[%emt 0:00:00]} g6 {[%emt 0:00:05]} 15. a4 {[%emt 0:00:00]} c5 {[%emt 0:00:07]} 16. d5 {[%emt 0:00:00]} c4 {[%emt 0:00:05]} 17. Bg5 {[%emt 0:00:00]} Nc5 {[%emt 0:01:33] C95: Closed Ruy Lopez: Breyer Variation with 10 d4.} 18. Nh2 {[%emt 0:00:00]} h6 {[%emt 0:13:48]} 19. Be3 {[%emt 0:00:00]} h5 {[%emt 0:00:13] White has an edge.} 20. Nf3 {[%emt 0:00:00]} Nfd7 {[%emt 0:03:22]} 21. Qe2 {[%emt 0:00:00]} Nb6 {[%emt 0:07:42][%cal Rb6a4]} 22. axb5 {[%emt 0:00:00]} axb5 {[%emt 0:00:10]} 23. Rxa8 {[%emt 0:00:00]} Bxa8 {[%emt 0:01:06]} 24. Ng5 {[%emt 0:00:00][%cal Og3h5]} Qf6 {[%emt 0:10:39]} 25. Rf1 {[%emt 0:00:00] [#]} Qg7 $146 {[%emt 0:23:30]} (25... Nbd7 $11) ({Predecessor:} 25... Nbd7 26. h4 Qe7 27. Ra1 Bb7 28. Ra5 Ba6 29. Nxh5 gxh5 30. Qxh5 Bg7 31. Qh7+ Kf8 {0-1 (81) Topalov,V (2740)-Amin,B (2704) Abidjan 2019}) 26. f4 $16 {[%emt 0:00:00] [#] aiming for fxe5.} exf4 {[%emt 0:09:09]} 27. Rxf4 {[%emt 0:00:00]} Re7 {[%emt 0:01:12]} 28. Bxc5 {[%emt 0:00:00]} dxc5 {[%emt 0:02:13]} (28... Nxd5 $142 29. Bxd6 Nxf4 30. Bxf4 f6) 29. d6 $18 {[%emt 0:00:00]} Qe5 {[%emt 0:12:32]} 30. dxe7 {[%emt 0:00:00]} Bxe7 {[%emt 0:00:09]} 31. Rxf7 {[%emt 0:00:00]} Qxg5 {[%emt 0:01:13]} 32. Qf2 {[%emt 0:00:00][%cal Oe4e5] [#] Hoping for e5!} Nd7 {[%emt 0:01:45]} 33. Nf1 {[%emt 0:00:00][%cal Oe4e5]} Qe5 {[%emt 0:02:35]} 34. Rf3 {[%emt 0:00:00]} Qe6 {[%emt 0:03:50]} (34... Bxe4 $2 35. Re3 $18) 35. Qg3 {[%emt 0:00:00]} Ne5 {[%emt 0:00:43]} 36. Rf2 {[%emt 0:00:00]} Bc6 {[%emt 0:00:54]} 37. Ne3 {[%emt 0:00:00][%cal Oe3d5]} Kh7 {[%emt 0:01:23]} (37... Nd3 $16) 38. Qf4 {[%emt 0:00:00]} Kg7 {[%emt 0:00:28]} 39. Nd5 {[%emt 0:03:19]} Bxd5 {[%emt 0:00:35]} 40. exd5 {[%emt 0:00:06]} Qxd5 {[%emt 0:00:28]} 41. Rd2 {[%emt 0:31:55]} Nd3 {[%emt 0:08:30] Black cannot hold the game after this.} (41... Qe6 $16 42. Qe4 b4) 42. Bxd3 {[%emt 0:00:00]} cxd3 {[%emt 0:01:38][%mdl 4096] Endgame KQR-KQB} 43. Qe3 {[%emt 0:00:00][%csl LRd3,LRe7]} Bf6 {[%emt 0:07:43]} 44. Qxd3 {[%emt 0:00:00]} Qg5 {[%emt 0:00:57]} 45. Re2 {[%emt 0:00:00]} h4 $2 {[%emt 0:03:43]} (45... b4 46. Qe3 Qf5) 46. Qd7+ {[%emt 0:00:00] White is clearly winning.} Kh6 {[%emt 0:00:31]} 47. Qd2 {[%emt 0:00:00]} b4 {[%emt 0:02:51]} 48. cxb4 {[%emt 0:00:00]} cxb4 {[%emt 0:00:59]} 49. Kf2 {[%emt 0:00:00]} Qxd2 {[%emt 0:01:04]} 50. Rxd2 {[%emt 0:00:00]} Kg5 {[%emt 0:00:10]} 51. Ke3 {[%emt 0:00:00]} Be7 {[%emt 0:00:59]} 52. Rd5+ {[%emt 0:00:00] Weighted Error Value: White=0.10 (very precise) /Black=0.34} 1-0

[Event "FRA-ch Teams Top 16-Haute 2022"]
[Site "Chartres"]
[Date "2022.06.16"]
[Round "8.8"]
[White "Navrotescu, Andreea"]
[Black "Maze, Sebastien"]
[Result "0-1"]
[ECO "A28"]
[WhiteElo "2318"]
[BlackElo "2519"]
[Annotator "TA"]
[PlyCount "84"]
[EventDate "2022.06.16"]
[EventType "team-tourn"]
[EventCountry "FRA"]
[SourceTitle "playchess.com"]
[Source "ChessBase"]
[SourceQuality "1"]
[TimeControl "40/5400+30:1800+30"]

{[%evp 9,84,9,12,7,23,15,25,14,14,-225,-206,-287,-281,-425,-418,-442,-423,-466,-445,-423,-252,-267,-273,-266,-269,-268,-243,-250,-152,-147,-158,-145,-153,-244,-239,-234,-232,-250,-239,-250,-250,-247,-251,-307,-318,-311,-216,-209,-184,-233,-225,-259,-239,-224,-217,-218,-222,-250,-247,-352,-161,-383,-346,-392,-388,-518,-306,-459,-447,-568,-577,-783,-795,-1102,-1079,-1076,-1031]} 1. c4 {[%emt 0:00:02]} e5 {[%emt 0:01:42]} 2. Nc3 {[%emt 0:00:05]} Nf6 {[%emt 0:00:04]} 3. Nf3 {[%emt 0:00:07]} Nc6 {[%emt 0:00:08]} 4. e3 {[%emt 0:00:04]} Bb4 {[%emt 0:00:05]} 5. Qc2 {[%emt 0:00:05]} d6 {[%emt 0:00:18]} 6. Ne2 {[%emt 0:00:06] A28: English Opening: Four Knights Variation.} e4 {[%emt 0:00:16]} 7. Ng5 {[%emt 0:02:22]} O-O {[%emt 0:00:34]} 8. Ng3 {[%emt 0:04:07] Threatening a3. White has an edge.} Ng4 {[%emt 0:00:24] [#]} 9. N5xe4 $146 {[%emt 0:06:52] White does not recover from this.} (9. Nh3 $1 $11 {and White has nothing to worry.}) ({Predecessor:} 9. Nh3 f5 10. a3 Bc5 11. b4 Bb6 12. c5 dxc5 13. bxc5 Ba5 14. Nf4 Nge5 15. h4 {1-0 (40) Nakada,A (2199)-Paciorkowski,L (2262) Charlotte 2021}) 9... f5 $1 $19 {[%emt 0:00:11][%cal Bf7f5,Bf5f4][%mdl 32]} 10. Nc3 {[%emt 0:18:22]} f4 {[%emt 0:03:28]} 11. Bd3 {[%emt 0:09:30]} (11. exf4 $142 Rxf4 12. Nge4) 11... Qh4 $1 {[%emt 0:01:46] And now ...Nxf2 would win.} (11... fxg3 12. Bxh7+ Kh8 13. hxg3 Nxf2 14. Rh5 $19) 12. Nge4 {[%emt 0:00:18]} Bxc3 {[%emt 0:10:46]} 13. bxc3 {[%emt 0:01:28]} Nce5 {[%emt 0:00:44]} 14. exf4 {[%emt 0:03:41]} Nxd3+ {[%emt 0:00:16]} (14... Nxf2 $2 15. Nxf2 Nxd3+ 16. Qxd3 $18) (14... Rxf4 $142 15. g3 Qh3) 15. Qxd3 {[%emt 0:00:05]} Bf5 {[%emt 0:00:04]} (15... Re8 16. Qe2 $17) 16. Qg3 {[%emt 0:02:49]} Qxg3 {[%emt 0:06:26]} (16... Qe7 17. f3 $11) 17. hxg3 {[%emt 0:00:38]} (17. Nxg3 $2 Rae8+ 18. Ne2 Bd3 $19) 17... Bxe4 {[%emt 0:02:15]} 18. f3 {[%emt 0:00:13] [#]} Bd3 {[%emt 0:01:54] ( -> ...Rae8+)} 19. fxg4 {[%emt 0:00:12]} Rae8+ {[%emt 0:00:06]} ({Stronger than} 19... Bxc4 20. Kd1 $15) 20. Kf2 {[%emt 0:11:34] [#]} Re2+ $1 {[%emt 0:00:05]} ({And not} 20... Bxc4 21. Re1 $17) 21. Kf3 {[%emt 0:00:03]} (21. Kg1 $17 {was necessary.}) 21... Rfe8 {[%emt 0:00:38] White must now prevent ...g5.} ({Inferior is} 21... Bxc4 22. d3 Bxd3 23. Rd1) 22. g5 {[%emt 0:00:44]} Bxc4 {[%emt 0:01:27]} 23. Rb1 {[%emt 0:01:17]} Bxa2 {[%emt 0:00:32]} 24. Rb5 {[%emt 0:02:47]} Bc4 {[%emt 0:03:59]} 25. Ra5 {[%emt 0:02:59]} a6 {[%emt 0:00:57][%cal Ba7a6,Ba6a5][%mdl 32]} 26. Rd1 {[%emt 0:06:45]} b6 {[%emt 0:00:31]} 27. Ra3 {[%emt 0:00:04]} Bd3 {[%emt 0:04:28]} 28. g4 {[%emt 0:03:01]} a5 {[%emt 0:01:00]} 29. Rf1 {[%emt 0:02:08]} (29. Rg1 $142) 29... R2e4 {[%emt 0:01:09]} 30. Rf2 {[%emt 0:00:25]} d5 {[%emt 0:00:35]} 31. Kg3 {[%emt 0:23:07] [#]} Re1 $1 {[%emt 0:03:51]} 32. Bb2 {[%emt 0:00:00]} Rb1 {[%emt 0:00:32]} 33. c4 {[%emt 0:00:00]} dxc4 {[%emt 0:02:56]} 34. Be5 {[%emt 0:00:00]} (34. Bc3 $142) 34... c6 {[%emt 0:02:41]} (34... Ra8 $142 35. Rf3 a4) 35. Bd4 $2 {[%emt 0:00:00]} (35. Rf3 {is a better defense.}) 35... c5 {[%emt 0:01:35]} 36. Bc3 {[%emt 0:00:00]} Ra8 {[%emt 0:09:15]} 37. Rf3 {[%emt 0:00:00]} Re1 {[%emt 0:00:11] aiming for ...a4.} 38. f5 {[%emt 0:00:00]} (38. Ra1 $142 Re7 39. f5) 38... a4 {[%emt 0:00:43] Black is clearly winning.} 39. f6 {[%emt 0:00:00]} gxf6 {[%emt 0:00:11]} 40. gxf6 {[%emt 0:00:00]} Kf7 {[%emt 0:00:12]} 41. Ra1 {[%emt 0:14:37]} Rxa1 {[%emt 0:30:16]} 42. Bxa1 {[%emt 0:00:30]} Re8 {[%emt 0:00:12] Weighted Error Value: White=0.64/Black=0.21 (precise)} 0-1

[Event "FRA-ch Teams Top 16-Haute 2022"]
[Site "Chartres"]
[Date "2022.06.16"]
[Round "8.9"]
[White "Korobov, Anton"]
[Black "Donchenko, Alexander"]
[Result "1-0"]
[ECO "B22"]
[WhiteElo "2671"]
[BlackElo "2599"]
[Annotator "TA"]
[PlyCount "63"]
[EventDate "2022.06.16"]
[EventType "team-tourn"]
[EventCountry "FRA"]
[SourceTitle "playchess.com"]
[Source "ChessBase"]
[SourceQuality "1"]
[TimeControl "40/5400+30:1800+30"]

{[%evp 9,63,6,7,0,0,0,0,0,0,0,0,0,0,0,15,12,16,19,76,70,83,76,69,72,54,44,64,25,112,105,244,227,289,246,327,313,535,397,388,278,356,345,328,322,275,328,614,597,760,759,752,707,743,686,571,539]} 1. e4 {[%emt 0:00:03]} c5 {[%emt 0:00:44]} 2. c3 {[%emt 0:00:07]} Nf6 {[%emt 0:00:34]} 3. e5 {[%emt 0:00:12]} Nd5 {[%emt 0:00:05]} 4. Bc4 {[%emt 0:00:14]} Nb6 {[%emt 0:01:18]} 5. Bb3 {[%emt 0:00:08]} Nc6 {[%emt 0:03:08]} 6. d4 {[%emt 0:03:01] B22: Sicilian: 2 c3.} (6. Qh5 c4 7. Bc2 Qc7 $15) 6... cxd4 {[%emt 0:02:06]} 7. cxd4 {[%emt 0:00:17]} d6 {[%emt 0:00:51]} 8. e6 $1 {[%emt 0:02:40][%mdl 4] The position is equal. is recently more successful than 8.Nf3.} fxe6 {[%emt 0:08:56]} (8... Bxe6 9. d5 Nxd5 10. Bxd5 $16) 9. Nf3 {[%emt 0:01:06]} g6 $1 {[%emt 0:00:58]} (9... Nd5 10. Nc3 $14) 10. h4 {[%emt 0:10:12][%cal Bh2h4,Bh4h5][%mdl 32]} Bg7 {[%emt 0:03:53]} 11. h5 {[%emt 0:03:05]} Nd5 {[%emt 0:01:15]} 12. Nc3 {[%emt 0:07:59]} Qb6 {[%emt 0:17:59][%cal Rc6d4] [#]} 13. O-O $146 {[%emt 0:14:34] Black must now prevent h6.} ({Predecessor:} 13. hxg6 hxg6 14. Rxh8+ Bxh8 15. Be3 Nxe3 16. fxe3 Bd7 17. Qd3 O-O-O 18. Qxg6 e5 19. d5 Qxe3+ {0-1 (52) Vlassov,N (2294)-Tari,A (2639) Chess.com INT 2021}) 13... Nxd4 {[%emt 0:05:56]} ({Less strong is} 13... Bxd4 14. Bxd5 exd5 15. Nxd5 $18) (13... Rf8 $11) 14. Nxd5 $16 {[%emt 0:01:15]} exd5 {[%emt 0:00:26]} 15. Be3 {[%emt 0:00:25]} Nxf3+ {[%emt 0:03:00]} 16. Qxf3 {[%emt 0:00:38]} Qb5 {[%emt 0:01:10]} (16... Rf8 $2 17. Ba4+ Qc6 18. Bxc6+ $18) 17. Rad1 {[%emt 0:07:29][%cal Ba1d1,Bd1d5,Bd5b5,Bb5b7,Bb7b4,Bb4f4][%mdl 32]} Rf8 {[%emt 0:08:26]} 18. Qg3 {[%emt 0:02:57]} Qb4 {[%emt 0:02:14]} (18... Bxb2 19. hxg6 hxg6 20. Rxd5 $18) (18... Be5 $11 {remains equal.} 19. f4 Bxb2) 19. hxg6 {[%emt 0:04:43]} Qg4 {[%emt 0:00:20] This costs Black the game.} (19... Qe4 $16) 20. gxh7 $18 {[%emt 0:01:48]} Rh8 {[%emt 0:05:48]} 21. Bc2 {[%emt 0:06:48]} ({Weaker is} 21. Bxd5 Rxh7 22. Qxg4 Bxg4 $16) 21... Bxb2 {[%emt 0:11:12]} 22. Rxd5 {[%emt 0:02:19]} Be6 $2 {[%emt 0:03:50]} (22... Qxg3 23. fxg3 b6 24. Bg6+ Kd7) 23. Rb5 {[%emt 0:02:31]} Bf6 {[%emt 0:02:51]} 24. Rxb7 {[%emt 0:01:12] Threatens to win with Bg6+.} Kf8 {[%emt 0:03:03]} 25. Bh6+ {[%emt 0:03:45]} Kf7 {[%emt 0:00:05] [#]} 26. Rb4 $3 {[%emt 0:05:28][%mdl 512] Really sharp!} Qxg3 {[%emt 0:00:56]} 27. fxg3 {[%emt 0:00:06]} Rac8 $2 {[%emt 0:01:25] [#]} (27... Rab8) 28. Rxf6+ $1 {[%emt 0:00:34][%mdl 512] White is clearly winning.} Kxf6 {[%emt 0:00:51]} (28... exf6 29. Rb7+) 29. Rf4+ {[%emt 0:00:10]} Ke5 {[%emt 0:00:03]} 30. Bg7+ {[%emt 0:00:14]} Kd5 {[%emt 0:00:02]} 31. Bb3+ {[%emt 0:00:16][%mdl 64] Deflection. A strong pair of Bishops.} Kc6 {[%emt 0:00:11]} 32. Bxe6 {[%emt 0:20:14] Weighted Error Value: White=0.14 (very precise) /Black=0.42} 1-0